bitfinex/quotes_ETHUSD_20241231
["timestamp","ask_amount","ask_price","bid_price","bid_amount"]
[1735626480724,4.07177601,3366.7,3366.6,15.24898265]
[1735626482458,4.07177601,3366.7,3366.6,13.57134779]
[1735626482756,10.26125236,3366.7,3366.6,13.57134779]
[1735626490464,9.90690851,3366.7,3366.6,13.57134779]
[1735626491163,7.20977601,3366.7,3366.6,13.57134779]
[1735626492539,7.20977601,3366.7,3366.6,11.89376381]
[1735626495497,11.52820851,3366.7,3366.6,11.89376381]
[1735626495714,12.18161919,3366.7,3366.6,11.89376381]
[1735626498772,9.48448669,3366.7,3366.6,11.89376381]
[1735626499122,7.50884284,3366.7,3366.6,11.89376381]
[1735626499415,4.37084284,3366.7,3366.6,11.89376381]
[1735626499555,3.45450258,3366.7,3366.6,11.89376381]
[1735626499756,3.15543575,3366.7,3366.6,11.89376381]
[1735626500325,0.15543575,3366.7,3366.6,13.53436381]
[1735626501657,3.0,3367.0,3366.7,1.6406]
[1735626502270,3.0,3366.8,3366.7,1.6406]
[1735626504882,5.16187848,3367.0,3366.7,1.6406]
[1735626505057,3.0,3366.9,3366.7,1.6406]
[1735626505859,3.36634026,3366.9,3366.7,1.6406]
[1735626506999,0.36634026,3366.8,3366.7,1.6406]
[1735626508428,8.52821874,3366.8,3366.7,1.6406]
[1735626509673,3.36634026,3366.8,3366.7,1.6406]
[1735626512140,8.52470005,3366.8,3366.7,1.6406]
[1735626513923,3.0,3366.7,3366.6,11.89376381]
[1735626514797,4.45602327,3366.7,3366.6,11.89376381]
[1735626515021,4.42611527,3366.7,3366.6,11.89376381]
[1735626515875,4.07177142,3366.7,3366.6,11.89376381]
[1735626516110,10.26885101,3366.7,3366.6,11.89376381]
[1735626516333,10.26885101,3366.7,3366.6,10.21628998]
[1735626517484,9.71885101,3366.7,3366.6,10.21628998]
[1735626520982,3.52177142,3366.7,3366.6,10.21628998]
[1735626521279,4.42611527,3366.7,3366.6,10.21628998]
[1735626523947,9.08081527,3366.7,3366.6,10.21628998]
[1735626524349,9.3798821,3366.7,3366.6,10.21628998]
[1735626526546,9.3798821,3366.7,3366.6,8.53852569]
[1735626527247,9.3798821,3366.7,3366.6,7.53888069]
[1735626527748,9.3798821,3366.7,3366.6,3.81022498]
[1735626528092,9.3798821,3366.7,3366.6,2.46787793]
[1735626529371,9.3798821,3366.7,3366.6,1.46823293]
[1735626529854,9.6298821,3366.7,3366.6,1.46823293]
[1735626530399,0.25,3366.5,3365.5,1000.0]
[1735626530629,3.55,3365.6,3365.5,1000.0]
[1735626531262,3.85728918,3365.6,3365.5,1000.0]
[1735626535146,4.01267035,3365.6,3365.5,1000.0]
[1735626537377,1.01267035,3365.6,3365.5,1000.0]
[1735626537916,1.01267035,3365.6,3365.5,1001.5481]
[1735626538261,10.19208781,3365.6,3365.5,1001.5481]
[1735626539379,4.01267035,3365.6,3365.5,1001.5481]
[1735626540000,5.20466635,3365.6,3365.5,1001.5481]
[1735626542299,5.20466635,3365.6,3365.5,1001.31653027]
[1735626543469,5.20466635,3365.6,3365.5,999.76843027]
[1735626543638,5.57100661,3365.6,3365.5,999.76843027]
[1735626545456,5.20466635,3365.6,3365.5,999.76843027]
[1735626545859,10.34907791,3365.6,3365.5,999.76843027]
[1735626546241,9.49178873,3365.6,3365.5,1001.31653027]
[1735626546464,8.14441156,3365.6,3365.5,1001.31653027]
[1735626547031,3.0,3365.6,3365.5,1001.31653027]
[1735626548077,7.35423308,3365.6,3365.5,1001.31653027]
[1735626548634,7.50964414,3365.6,3365.5,1001.31653027]
[1735626549086,3.15541106,3365.6,3365.5,1001.31653027]
[1735626555514,8.29982262,3365.6,3365.5,1001.31653027]
[1735626556200,3.15541106,3365.6,3365.5,1001.31653027]
[1735626557954,8.84982262,3365.6,3365.5,1001.31653027]
[1735626558266,8.84982262,3365.6,3365.5,999.63848105]
[1735626559051,3.70541106,3365.6,3365.5,999.63848105]
[1735626560891,3.15541106,3365.6,3365.5,999.63848105]
[1735626561254,9.33482852,3365.6,3365.5,999.63848105]
[1735626562178,3.15541106,3365.6,3365.5,999.63848105]
[1735626567901,3.70541106,3365.6,3365.5,999.63848105]
[1735626568414,4.07175132,3365.6,3365.5,998.09038105]
[1735626568709,4.07175132,3365.6,3365.5,996.41227909]
[1735626569818,3.52175132,3365.6,3365.5,996.41227909]
[1735626570016,3.15541106,3365.6,3365.5,996.41227909]
[1735626570819,3.15541106,3365.6,3365.5,998.04557909]
[1735626574615,6.84341106,3365.6,3365.5,996.41227909]
[1735626574923,4.07175132,3365.6,3365.5,996.41227909]
[1735626577336,5.70595132,3365.6,3365.5,996.41227909]
[1735626577631,6.01326342,3365.6,3365.5,996.41227909]
[1735626577928,6.36859893,3365.6,3365.5,996.41227909]
[1735626578142,6.36859893,3365.6,3365.5,992.6828487]
[1735626578590,6.36859893,3365.6,3365.5,989.66195998]
[1735626580356,4.37906342,3365.6,3365.5,989.66195998]
[1735626587487,3.82906342,3365.6,3365.5,989.66195998]
[1735626587683,3.82906342,3365.6,3365.5,991.22725998]
[1735626587886,3.15541106,3365.6,3365.5,994.22355955]
[1735626588094,1.191766,3365.8,3365.6,1.5653]
[1735626589662,7.3975552,3365.8,3365.6,1.5653]
[1735626590843,3.0,3365.7,3365.6,1.5653]
[1735626591543,3.36634026,3365.7,3365.6,1.5653]
[1735626592891,3.36634026,3365.7,3365.5,989.66195998]
[1735626593097,0.36634026,3365.7,3365.5,989.66195998]
[1735626593859,0.55,3365.6,3365.5,989.66195998]
[1735626594067,1.31180911,3365.6,3365.5,989.66195998]
[1735626594476,1.31180911,3365.6,3365.5,987.98381254]
[1735626595597,4.31180911,3365.6,3365.5,987.98381254]
[1735626595753,1.31180911,3365.6,3365.5,987.98381254]
[1735626601417,0.91634026,3365.6,3365.5,987.98381254]
[1735626603733,0.55,3365.6,3365.5,987.98381254]
[1735626604033,1.191766,3365.8,3365.5,992.51371211]
[1735626604182,1.191766,3365.8,3365.6,1.5336]
[1735626605830,3.0,3365.7,3365.6,1.5336]
[1735626609248,9.20114644,3365.7,3365.6,1.5336]
[1735626613154,3.0,3365.7,3365.6,1.5336]
[1735626613358,5.16546988,3365.8,3365.6,4.52989957]
[1735626613484,8.16546988,3365.8,3365.7,4.3446325]
[1735626613682,5.16546988,3365.8,3365.7,4.3446325]
[1735626613937,5.16546988,3365.8,3365.7,7.34093207]
[1735626614639,3.0,3365.8,3365.7,7.34093207]
[1735626614993,3.0,3365.8,3365.7,4.64379957]
[1735626615808,5.16546988,3366.3,3365.8,1.6475]
[1735626615809,4.37030534,3366.0,3365.8,1.6475]
[1735626619323,7.37030534,3366.2,3365.8,1.6475]
[1735626619524,7.37030534,3366.2,3366.0,1.6475]
[1735626620354,7.37030534,3366.1,3366.0,1.6475]
[1735626621251,3.0,3366.1,3366.0,1.6475]
[1735626626009,4.6305,3366.0,3365.5,987.98381254]
[1735626626206,0.76180911,3365.9,3365.5,987.98381254]
[1735626626659,3.0,3365.8,3365.5,987.98381254]
[1735626626859,1.31180911,3365.7,3365.5,987.98381254]
[1735626627214,5.1016,3365.6,3365.5,987.98381254]
[1735626627413,2.86340911,3365.6,3365.5,987.98381254]
[1735626627940,2.86340911,3365.6,3365.5,986.30564028]
[1735626628514,8.56054161,3365.6,3365.5,986.30564028]
[1735626632038,8.16507276,3365.6,3365.5,986.30564028]
[1735626632955,5.1016,3365.6,3365.5,986.30564028]
[1735626633762,4.5516,3365.6,3365.5,986.30564028]
[1735626634056,3.0,3365.6,3365.5,986.30564028]
[1735626634563,9.73510104,3365.6,3365.5,986.30564028]
[1735626635434,3.55,3365.6,3365.5,986.30564028]
[1735626636210,4.31180911,3365.6,3365.5,986.30564028]
[1735626636416,3.91634026,3365.6,3365.5,986.30564028]
[1735626642482,4.31180911,3365.6,3365.5,986.30564028]
[1735626642652,8.55004161,3365.6,3365.5,986.30564028]
[1735626644968,5.45744026,3365.6,3365.5,986.30564028]
[1735626646557,5.6129457,3365.6,3365.5,986.30564028]
[1735626649276,5.6129457,3365.6,3365.5,984.62740455]
[1735626650101,3.5218457,3365.6,3365.5,984.62740455]
[1735626650232,3.15550544,3365.6,3365.5,984.62740455]
[1735626650431,3.15550544,3365.6,3365.5,989.16460412]
[1735626650777,3.15550544,3365.6,3365.5,986.16830455]
[1735626654283,4.46731455,3365.6,3365.5,984.62740455]
[1735626655169,6.00841455,3365.6,3365.5,984.62740455]
[1735626658443,6.00841455,3365.6,3365.5,981.6063398]
[1735626658672,6.00841455,3365.6,3365.5,979.55497677]
[1735626659550,6.00841455,3365.6,3365.5,977.87657902]
[1735626661878,5.45841455,3365.6,3365.5,977.87657902]
[1735626662237,3.5218457,3365.6,3365.5,977.87657902]
[1735626662439,4.0718457,3365.6,3365.5,977.87657902]
[1735626663949,4.0718457,3365.6,3365.5,973.41959902]
[1735626664131,4.0718457,3365.6,3365.5,974.98019902]
[1735626664302,4.0718457,3365.6,3365.5,970.52321902]
[1735626665342,3.5218457,3365.6,3365.5,966.06623902]
[1735626665527,9.34216456,3365.6,3365.5,966.06623902]
[1735626665726,9.31339456,3365.6,3365.5,966.06623902]
[1735626666547,12.31339456,3365.6,3365.5,961.60925902]
[1735626666929,6.12673544,3365.6,3365.5,961.60925902]
[1735626667448,6.12673544,3365.6,3365.5,960.12359902]
[1735626667598,6.12673544,3365.6,3365.5,958.63793902]
[1735626667903,6.12673544,3365.6,3365.5,957.15227902]
[1735626668305,6.12673544,3365.6,3365.5,952.69529902]
[1735626668845,7.0430757,3365.6,3365.5,951.13469902]
[1735626669344,7.0430757,3365.6,3365.5,946.67771902]
[1735626670120,7.0430757,3365.6,3365.5,944.99959963]
[1735626670644,7.0430757,3365.6,3365.5,942.02827963]
[1735626670948,7.43854455,3365.6,3365.5,940.54261963]
[1735626671247,8.96154455,3365.6,3365.5,940.54261963]
[1735626671555,8.96154455,3365.6,3365.5,936.08563963]
[1735626671719,8.96154455,3365.6,3365.5,934.40721143]
[1735626672052,8.96154455,3365.6,3365.5,933.06446706]
[1735626672352,8.96154455,3365.6,3365.5,928.60748706]
[1735626672698,8.96154455,3365.6,3365.5,926.55607449]
[1735626673201,9.42810591,3365.6,3365.5,926.55607449]
[1735626673402,9.42810591,3365.6,3365.5,922.09909449]
[1735626674566,9.42810591,3365.6,3365.5,917.64211449]
[1735626675065,9.42810591,3365.6,3365.5,914.36150352]
[1735626675066,9.70717274,3365.6,3365.5,914.36150352]
[1735626675237,11.1440294,3365.6,3365.5,905.90875352]
[1735626675768,11.1440294,3365.6,3365.5,899.95400352]
[1735626676136,11.1440294,3365.6,3365.5,896.97057352]
[1735626676353,11.1440294,3365.6,3365.5,892.51359352]
[1735626677253,11.1440294,3365.6,3365.5,887.27931085]
[1735626677570,9.42810591,3365.6,3365.5,874.3363114]
[1735626677770,12.56910591,3365.6,3365.5,868.82282614]
[1735626678261,14.00596257,3365.6,3365.5,859.88904614]
[1735626678466,14.00596257,3365.6,3365.5,858.40338614]
[1735626678623,22.80596257,3365.6,3365.5,846.9094328]
[1735626678823,23.07113544,3365.6,3365.5,845.1220628]
[1735626679320,23.07113544,3365.6,3365.5,842.1507428]
[1735626679537,19.93013544,3365.6,3365.5,840.6650828]
[1735626680229,18.49327878,3365.6,3365.5,826.0312696]
[1735626680566,21.63427878,3365.6,3365.5,823.0599496]
[1735626680941,21.88427878,3365.6,3365.5,823.0599496]
[1735626681140,23.32113544,3365.6,3365.5,823.0599496]
[1735626681341,23.32113544,3365.6,3365.5,816.55126876]
[1735626681993,23.32113544,3365.6,3365.5,814.87254724]
[1735626682195,21.88427878,3365.6,3365.5,806.6560636]
[1735626682392,21.88427878,3365.6,3365.5,796.71902269]
[1735626682577,23.57113544,3365.6,3365.5,787.53035669]
[1735626682764,23.57113544,3365.6,3365.5,785.41035669]
[1735626683262,23.57113544,3365.6,3365.5,782.63931669]
[1735626683571,23.57113544,3365.6,3365.5,781.25379669]
[1735626684079,22.13427878,3365.6,3365.5,778.27177568]
[1735626684263,22.13427878,3365.6,3365.5,776.01968393]
[1735626685601,18.49327878,3365.6,3365.5,776.01968393]
[1735626686098,16.15510591,3365.6,3365.5,768.58059296]
[1735626686397,16.15510591,3365.6,3365.5,764.12361296]
[1735626686398,4.35510591,3365.6,3365.5,764.12361296]
[1735626686756,7.90510591,3365.6,3365.5,764.12361296]
[1735626686956,7.90510591,3365.6,3365.5,760.14185699]
[1735626687283,7.90510591,3365.6,3365.5,758.17639699]
[1735626687449,7.90510591,3365.6,3365.5,757.69659699]
[1735626690498,7.90510591,3365.6,3365.5,756.01803296]
[1735626692114,7.90510591,3365.6,3365.5,752.55010075]
[1735626695891,7.90510591,3365.6,3365.5,745.59702478]
[1735626696189,7.90510591,3365.6,3365.5,744.11136478]
[1735626696413,7.90510591,3365.6,3365.5,742.62570478]
[1735626696614,7.90510591,3365.6,3365.5,740.77556478]
[1735626697305,9.55450591,3365.6,3365.5,740.77556478]
[1735626697478,12.69550591,3365.6,3365.5,736.40347303]
[1735626697675,12.69550591,3365.6,3365.5,732.23183282]
[1735626697907,9.55450591,3365.6,3365.5,732.23183282]
[1735626698185,7.90510591,3365.6,3365.5,732.23183282]
[1735626699199,7.90510591,3365.6,3365.5,731.23183282]
[1735626699399,15.12880255,3365.6,3365.5,727.98009607]
[1735626700098,15.12880255,3365.6,3365.5,726.49443607]
[1735626700327,15.12880255,3365.6,3365.5,723.52311607]
[1735626700528,15.12880255,3365.6,3365.5,722.03745607]
[1735626700896,14.26677234,3365.6,3365.5,723.70125607]
[1735626702424,14.26677234,3365.6,3365.5,722.02288908]
[1735626703721,14.66224119,3365.6,3365.5,711.92035311]
[1735626704321,14.66224119,3365.6,3365.5,710.43469311]
[1735626705026,14.66224119,3365.6,3365.5,704.48126214]
[1735626705213,14.66224119,3365.6,3365.5,701.49915117]
[1735626705594,13.47375119,3365.6,3365.5,695.25294657]
[1735626705915,9.16194208,3365.6,3365.5,699.80074614]
[1735626706595,12.16194208,3365.6,3365.5,692.37244614]
[1735626707281,12.16194208,3365.6,3365.5,686.25676614]
[1735626707625,4.93824544,3365.6,3365.5,686.25676614]
[1735626708925,1.93824544,3365.6,3365.5,686.25676614]
[1735626710787,9.30353223,3365.6,3365.5,686.25676614]
[1735626713446,4.93824544,3365.6,3365.5,686.25676614]
[1735626715207,4.78274,3365.6,3365.5,686.25676614]
[1735626715647,4.18849,3365.6,3365.5,686.25676614]
[1735626718347,1.18849,3365.6,3365.5,686.25676614]
[1735626718912,4.9242183,3365.6,3365.5,686.25676614]
[1735626720367,1.18849,3365.6,3365.5,686.25676614]
[1735626721472,1.44524066,3365.7,3365.6,0.8347]
[1735626721768,0.61054066,3365.7,3365.6,2.99629957]
[1735626722625,0.61054066,3365.7,3365.6,3.47439957]
[1735626723439,1.18843,3365.8,3365.7,0.25]
[1735626723650,1.18843,3365.8,3365.7,6.42283207]
[1735626723821,1.18843,3365.8,3365.7,3.72569957]
[1735626729758,1.18843,3365.8,3365.7,3.47569957]
[1735626729959,1.18843,3365.8,3365.7,0.4794]
[1735626730166,1.55477026,3365.8,3365.7,0.4794]
[1735626730338,1.18849,3365.6,3365.5,681.70896657]
[1735626731396,1.18849,3365.6,3365.5,674.28066657]
[1735626732339,1.18849,3365.6,3365.5,671.10030657]
[1735626732551,4.14149911,3365.6,3365.5,671.10030657]
[1735626732726,6.59149911,3365.6,3365.5,671.10030657]
[1735626733016,6.19603026,3365.6,3365.5,671.10030657]
[1735626733321,9.2989137,3365.6,3365.5,671.10030657]
[1735626733620,7.6577137,3365.6,3365.5,670.82768657]
[1735626733778,7.6577137,3365.6,3365.5,670.69137657]
[1735626734420,4.18849,3365.6,3365.5,670.69137657]
[1735626736508,7.29470063,3365.6,3365.5,670.69137657]
[1735626737394,7.29470063,3365.6,3365.5,663.26307657]
[1735626737582,7.66104089,3365.6,3365.5,663.26307657]
[1735626737782,8.21104089,3365.6,3365.5,663.26307657]
[1735626738046,6.74603026,3365.6,3365.5,663.26307657]
[1735626738350,6.74603026,3365.6,3365.5,660.29175657]
[1735626738504,6.74603026,3365.6,3365.5,658.80609657]
[1735626739310,6.74603026,3365.6,3365.5,657.32043657]
[1735626739508,6.74603026,3365.6,3365.5,655.83477657]
[1735626743063,4.55483026,3365.6,3365.5,655.83477657]
[1735626743240,1.18849,3365.6,3365.5,658.83107614]
[1735626743666,4.18849,3365.6,3365.5,658.83107614]
[1735626745068,4.18849,3365.6,3365.5,655.83477657]
[1735626745769,3.0,3365.6,3365.5,655.83477657]
[1735626746572,3.36634026,3365.6,3365.5,655.83477657]
[1735626746746,3.0,3365.6,3365.5,655.83477657]
[1735626746947,3.0,3365.6,3365.5,652.86345657]
[1735626747174,3.0,3365.6,3365.5,649.89213657]
[1735626747361,3.29712,3365.6,3365.5,647.07517657]
[1735626747546,3.29712,3365.6,3365.5,646.37093657]
[1735626748145,7.66240679,3365.6,3365.5,646.37093657]
[1735626748349,7.66240679,3365.6,3365.5,649.36723614]
[1735626748875,7.66240679,3365.6,3365.5,646.37093657]
[1735626749273,7.03519271,3365.6,3365.5,646.37093657]
[1735626750180,3.29712,3365.6,3365.5,646.37093657]
[1735626752538,0.29712,3365.6,3365.5,646.37093657]
[1735626756382,3.74188714,3365.7,3365.5,646.37093657]
[1735626756578,3.74188714,3365.7,3365.6,2.99629957]
[1735626758275,3.74188714,3365.7,3365.6,3.27600439]
[1735626758455,6.74188714,3365.8,3365.7,0.25]
[1735626758655,6.74188714,3365.8,3365.7,2.9471325]
[1735626758861,6.74188714,3365.8,3365.7,0.25]
[1735626759061,6.74188714,3365.8,3365.7,3.24629957]
[1735626759584,3.0,3365.8,3365.7,3.24629957]
[1735626762817,3.0,3365.8,3365.7,2.99629957]
[1735626764183,6.11731238,3365.8,3365.7,2.99629957]
[1735626765228,3.0,3365.8,3365.7,2.99629957]
[1735626766416,6.11731238,3365.8,3365.7,2.99629957]
[1735626766623,3.0,3365.7,3365.6,0.25]
[1735626766919,3.11731238,3365.8,3365.5,649.06806907]
[1735626767121,3.51278123,3365.8,3365.5,646.37093657]
[1735626767296,3.11731238,3365.8,3365.5,646.37093657]
[1735626768693,3.0,3365.7,3365.5,646.37093657]
[1735626770242,6.74188714,3365.7,3365.5,646.37093657]
[1735626772131,4.36528679,3365.7,3365.5,646.37093657]
[1735626775232,6.74268521,3365.6,3365.5,646.37093657]
[1735626777549,3.0,3365.6,3365.5,646.37093657]
[1735626780603,4.5204,3365.6,3365.5,645.88017657]
[1735626780831,5.30330078,3365.6,3365.5,645.88017657]
[1735626781216,3.0,3365.6,3365.5,645.88017657]
[1735626781416,3.0,3365.6,3365.5,651.57360864]
[1735626781833,3.0,3365.6,3365.5,651.82360864]
[1735626782867,3.0,3365.6,3365.5,651.57360864]
[1735626783164,6.1196701,3365.6,3365.5,645.88017657]
[1735626784356,6.74360412,3365.6,3365.5,645.88017657]
[1735626784560,6.74360412,3365.6,3365.5,648.57730907]
[1735626785220,6.74360412,3365.6,3365.5,645.88017657]
[1735626785531,3.0,3365.6,3365.5,645.88017657]
[1735626786631,4.5204,3365.6,3365.5,645.88017657]
[1735626786835,3.0,3365.6,3365.5,645.88017657]
[1735626787228,7.36753814,3365.6,3365.5,645.88017657]
[1735626788623,3.0,3365.6,3365.5,645.88017657]
[1735626790025,4.6052,3365.6,3365.5,645.88017657]
[1735626790226,5.54263193,3365.6,3365.5,645.88017657]
[1735626790426,5.91310078,3365.6,3365.5,645.88017657]
[1735626790754,5.1552,3365.6,3365.5,645.88017657]
[1735626791292,4.6052,3365.6,3365.5,645.88017657]
[1735626791768,4.99263193,3365.6,3365.5,645.88017657]
[1735626792142,4.6052,3365.6,3365.5,645.88017657]
[1735626794168,4.99263193,3365.6,3365.5,641.42319657]
[1735626794402,4.6052,3365.6,3365.5,640.06722657]
[1735626794873,4.99263193,3365.6,3365.5,640.06722657]
[1735626795336,4.6052,3365.6,3365.5,640.06722657]
[1735626797469,3.0,3365.6,3365.5,640.06722657]
[1735626798375,4.94513193,3365.6,3365.5,640.06722657]
[1735626798731,5.49513193,3365.6,3365.5,640.06722657]
[1735626798932,5.86560078,3365.6,3365.5,640.06722657]
[1735626799375,5.49513193,3365.6,3365.5,640.06722657]
[1735626799670,5.1077,3365.6,3365.5,640.06722657]
[1735626800061,5.49513193,3365.6,3365.5,640.06722657]
[1735626800472,5.1077,3365.6,3365.5,640.06722657]
[1735626800682,5.1077,3365.6,3365.5,638.38917224]
[1735626802749,5.49513193,3365.6,3365.5,638.38917224]
[1735626804151,8.71656863,3365.6,3365.5,638.38917224]
[1735626804503,9.01762996,3365.6,3365.5,636.72257224]
[1735626804786,9.01762996,3365.6,3365.5,632.98170887]
[1735626804971,9.01762996,3365.6,3365.5,625.36948067]
[1735626805179,9.01762996,3365.6,3365.5,624.81314367]
[1735626805360,6.32049746,3365.6,3365.5,622.76163112]
[1735626805561,6.32049746,3365.6,3365.5,621.41881406]
[1735626806381,5.95002861,3365.6,3365.5,621.41881406]
[1735626810767,5.26153535,3365.6,3365.5,621.41881406]
[1735626811094,5.26153535,3365.6,3365.5,619.74047575]
[1735626811651,5.64920849,3365.6,3365.5,619.74047575]
[1735626812250,4.09150849,3365.6,3365.5,619.74047575]
[1735626813596,10.27682734,3365.6,3365.5,619.74047575]
[1735626815060,11.46881334,3365.6,3365.5,619.74047575]
[1735626818111,10.27682734,3365.6,3365.5,619.74047575]
[1735626818318,12.29839619,3365.6,3365.5,619.74047575]
[1735626818824,6.11307734,3365.6,3365.5,619.74047575]
[1735626819118,7.30518734,3365.6,3365.5,619.74047575]
[1735626819915,7.60624867,3365.6,3365.5,567.546721]
[1735626820232,7.60624867,3365.6,3365.5,563.15156435]
[1735626820376,7.60624867,3365.6,3365.5,561.47302033]
[1735626821100,7.91396278,3365.6,3365.5,561.47302033]
[1735626821310,17.01246278,3365.6,3365.5,557.87724027]
[1735626821506,18.44931944,3365.6,3365.5,557.58024027]
[1735626821811,18.69931944,3365.6,3365.5,551.66163465]
[1735626822193,18.69931944,3365.6,3365.5,549.60990068]
[1735626822599,18.44931944,3365.6,3365.5,549.60990068]
[1735626823201,17.01246278,3365.6,3365.5,541.65924114]
[1735626823419,17.26246278,3365.6,3365.5,532.96219039]
[1735626823780,17.26246278,3365.6,3365.5,530.81805339]
[1735626824105,17.26246278,3365.6,3365.5,529.79988039]
[1735626824914,17.26246278,3365.6,3365.5,529.75924139]
[1735626826316,17.26246278,3365.6,3365.5,484.19096857]
[1735626826620,17.26246278,3365.6,3365.5,477.56304357]
[1735626826827,16.96396278,3365.6,3365.5,477.56304357]
[1735626827221,16.96396278,3365.6,3365.5,475.1849274]
[1735626829141,17.26246278,3365.6,3365.5,468.8249274]
[1735626829361,17.26246278,3365.6,3365.5,464.5849274]
[1735626830194,17.26246278,3365.6,3365.5,461.98303977]
[1735626830413,20.40346278,3365.6,3365.5,421.56553075]
[1735626830692,20.40346278,3365.6,3365.5,419.313439]
[1735626830900,20.40346278,3365.6,3365.5,417.06134725]
[1735626831141,20.40346278,3365.6,3365.5,415.38243591]
[1735626831482,20.40346278,3365.6,3365.5,413.33043677]
[1735626831594,21.84031944,3365.6,3365.5,315.07476621]
[1735626831793,21.84031944,3365.6,3365.5,310.23716621]
[1735626832021,21.84031944,3365.6,3365.5,300.07410926]
[1735626832342,21.84031944,3365.6,3365.5,282.21167849]
[1735626832549,21.84031944,3365.6,3365.5,262.83335849]
[1735626832838,18.69931944,3365.6,3365.5,228.72680232]
[1735626833041,18.14931944,3365.6,3365.5,207.52680232]
[1735626833201,12.79349393,3365.6,3365.5,168.98590738]
[1735626833407,2.34239393,3365.6,3365.5,164.74590738]
[1735626833674,2.50472079,3365.6,3365.5,164.74590738]
[1735626833876,2.50472079,3365.6,3365.5,162.62590738]
[1735626834146,2.34239393,3365.6,3365.5,162.62590738]
[1735626835045,1.65365946,3365.6,3365.5,162.62590738]
[1735626835206,0.46154946,3365.6,3365.5,162.62590738]
[1735626836347,1.01154946,3365.6,3365.5,162.62590738]
[1735626837207,4.01154946,3365.6,3365.5,162.62590738]
[1735626838269,1.3992226,3365.6,3365.5,162.62590738]
[1735626840257,1.79100411,3365.6,3365.5,162.62590738]
[1735626842361,1.79100411,3365.6,3365.5,160.94757697]
[1735626842929,3.43240411,3365.6,3365.5,160.94757697]
[1735626843241,6.43240411,3365.6,3365.5,160.94757697]
[1735626843966,4.3992226,3365.6,3365.5,160.94757697]
[1735626844262,3.46154946,3365.6,3365.5,160.94757697]
[1735626844572,4.3992226,3365.6,3365.5,160.94757697]
[1735626845599,4.09150849,3365.6,3365.5,160.94757697]
[1735626850979,3.15383535,3365.6,3365.5,162.55167697]
[1735626851186,0.15383535,3365.6,3365.5,165.54797654]
[1735626852350,9.34551876,3365.6,3365.5,162.55167697]
[1735626855843,9.19168341,3365.6,3365.5,162.55167697]
[1735626860595,3.0,3365.6,3365.5,162.55167697]
[1735626862687,6.19168341,3365.7,3365.5,160.94757697]
[1735626862858,6.19168341,3365.7,3365.6,7.28133207]
[1735626863250,9.19168341,3365.7,3365.6,7.28133207]
[1735626864592,7.36429968,3365.7,3365.6,7.28133207]
[1735626864897,7.36429968,3365.7,3365.6,4.58419957]
[1735626865557,3.0,3365.7,3365.6,4.58419957]
[1735626866262,3.0,3365.7,3365.6,1.5879]
[1735626866455,3.38768162,3365.7,3365.6,1.5879]
[1735626866857,3.0,3365.7,3365.6,1.5879]
[1735626868026,3.0,3365.7,3365.6,4.2850325]
[1735626869226,3.38768162,3365.7,3365.6,1.5879]
[1735626870077,3.38768162,3365.7,3365.6,4.58419957]
[1735626870407,3.0,3365.7,3365.6,4.58419957]
[1735626873927,3.38768162,3365.7,3365.6,4.58419957]
[1735626874085,3.0,3365.7,3365.6,4.58419957]
[1735626874825,3.38768162,3365.7,3365.6,4.58419957]
[1735626875043,3.38768162,3365.7,3365.6,1.5879]
[1735626875919,3.77946313,3365.7,3365.6,1.5879]
[1735626876934,8.14376281,3365.7,3365.6,1.5879]
[1735626877636,3.77946313,3365.7,3365.6,1.5879]
[1735626877994,3.0,3365.6,3365.5,160.94757697]
[1735626878194,0.38768162,3365.6,3365.5,160.94757697]
[1735626878631,0.93768162,3365.6,3365.5,160.94757697]
[1735626878807,2.84846313,3365.6,3365.5,160.94757697]
[1735626879215,2.84846313,3365.6,3365.5,159.26939996]
[1735626879428,1.32946313,3365.6,3365.5,159.26939996]
[1735626880118,1.25072575,3365.6,3365.5,159.26939996]
[1735626882840,5.80832575,3365.6,3365.5,159.26939996]
[1735626883736,3.55,3365.6,3365.5,159.26939996]
[1735626885003,3.0,3365.6,3365.5,160.91349996]
[1735626886241,9.19262055,3365.6,3365.5,160.91349996]
[1735626887500,9.19262055,3365.6,3365.5,159.26939996]
[1735626888209,9.57374072,3365.6,3365.5,159.26939996]
[1735626888652,10.12374072,3365.6,3365.5,159.26939996]
[1735626888804,12.07312223,3365.6,3365.5,159.26939996]
[1735626889204,5.88050168,3365.6,3365.5,159.26939996]
[1735626889509,5.88050168,3365.6,3365.5,157.59111318]
[1735626890833,6.16239635,3365.6,3365.5,157.59111318]
[1735626892652,14.96239635,3365.6,3365.5,155.9126057]
[1735626892840,14.96239635,3365.6,3365.5,153.86108968]
[1735626893360,14.96239635,3365.6,3365.5,152.86144468]
[1735626893947,14.96239635,3365.6,3365.5,150.60935293]
[1735626896569,14.96239635,3365.6,3365.5,149.60970793]
[1735626898373,15.27228465,3365.6,3365.5,149.60970793]
[1735626898753,15.27228465,3365.6,3365.5,148.60559536]
[1735626898928,22.48275955,3365.6,3365.5,148.60559536]
[1735626899525,22.20086488,3365.6,3365.5,148.32348602]
[1735626899979,22.20086488,3365.6,3365.5,146.64487056]
[1735626900959,22.20086488,3365.6,3365.5,143.59359306]
[1735626902410,22.20086488,3365.6,3365.5,141.34150131]
[1735626902733,22.20086488,3365.6,3365.5,139.6628164]
[1735626903488,22.45086488,3365.6,3365.5,136.76315462]
[1735626903790,22.45086488,3365.6,3365.5,130.27106287]
[1735626904158,22.70086488,3365.6,3365.5,126.03106287]
[1735626904639,24.13772154,3365.6,3365.5,125.81813848]
[1735626904843,22.70086488,3365.6,3365.5,122.14055297]
[1735626905066,22.45086488,3365.6,3365.5,119.88846122]
[1735626905742,22.70086488,3365.6,3365.5,119.88846122]
[1735626905942,22.45086488,3365.6,3365.5,119.88846122]
[1735626906176,22.20086488,3365.6,3365.5,119.88846122]
[1735626906674,23.63772154,3365.6,3365.5,118.09809702]
[1735626906876,22.20086488,3365.6,3365.5,115.84600527]
[1735626908263,22.20086488,3365.6,3365.5,114.80823997]
[1735626908881,22.20086488,3365.6,3365.5,113.80859497]
[1735626909258,22.20086488,3365.6,3365.5,111.75684802]
[1735626910492,14.99038998,3365.6,3365.5,111.75684802]
[1735626911162,14.99038998,3365.6,3365.5,110.75720302]
[1735626911362,14.99038998,3365.6,3365.5,109.73443074]
[1735626912889,14.44038998,3365.6,3365.5,105.49443074]
[1735626913199,11.99038998,3365.6,3365.5,103.81579175]
[1735626913700,14.99038998,3365.6,3365.5,100.69614675]
[1735626914409,14.99038998,3365.6,3365.5,99.67332342]
[1735626914997,6.19038998,3365.6,3365.5,99.67332342]
[1735626915194,4.63278998,3365.6,3365.5,99.67332342]
[1735626917378,4.63278998,3365.6,3365.5,98.41654666]
[1735626917583,6.23068998,3365.6,3365.5,96.16445491]
[1735626917814,6.23068998,3365.6,3365.5,91.86074819]
[1735626918022,15.03068998,3365.6,3365.5,90.21931389]